bitfinex/quotes_ETHUSD_20250406
["timestamp","ask_amount","ask_price","bid_price","bid_amount"]
[1743977046613,1e-08,1590.1,1589.9,3.0]
[1743977046760,1e-08,1590.1,1589.7,3.7622]
[1743977046967,1e-08,1590.1,1589.6,0.48107239]
[1743977047289,58.47670001,1590.1,1588.7,6.9022]
[1743977047491,58.47670001,1590.1,1589.0,0.46157839]
[1743977047824,1e-08,1590.1,1590.0,9.2893]
[1743977048111,1e-08,1590.1,1589.8,6.28986]
[1743977048259,1e-08,1590.1,1589.6,3.0]
[1743977048460,1e-08,1590.1,1589.7,3.0]
[1743977048659,0.02,1590.9,1590.8,6.28614]
[1743977048907,0.8267,1591.5,1590.6,11.36556088]
[1743977049087,13.2877,1591.5,1590.4,3.0]
[1743977049287,1.32877,1591.4,1590.3,6.14]
[1743977049614,0.7778,1591.0,1589.4,6.14]
[1743977049757,1.32877,1591.4,1589.1,0.7988]
[1743977049758,0.7778,1590.8,1589.1,0.7988]
[1743977049962,0.55,1590.5,1589.1,1.49268]
[1743977050179,0.55,1590.5,1589.2,6.29244]
[1743977050462,0.55,1590.5,1589.1,13.9255]
[1743977050703,0.7667,1590.6,1589.7,3.0]
[1743977050861,0.7667,1590.6,1589.8,0.8741904]
[1743977050862,12.565,1590.5,1589.8,0.8741904]
[1743977051063,12.565,1590.5,1589.5,3.0]
[1743977051310,0.7667,1590.6,1589.6,9.29089]
[1743977051637,39.97127,1591.4,1589.6,9.29089]
[1743977051638,0.8275,1591.0,1589.9,6.28949]
[1743977051847,0.8275,1591.0,1589.5,0.814]
[1743977052152,0.8275,1591.0,1589.3,6.14]
[1743977052369,0.8275,1591.0,1590.4,3.0]
[1743977052659,0.8209,1591.4,1591.0,6.28526]
[1743977052806,0.8209,1591.8,1590.7,6.83648]
[1743977053010,0.8209,1591.8,1591.1,3.0]
[1743977053213,2.17499,1591.8,1591.1,9.28487]
[1743977053651,2.17499,1591.8,1591.1,3.0]
[1743977053851,0.8209,1591.8,1591.5,3.0]
[1743977054067,0.02,1591.9,1591.5,3.0]
[1743977054350,12.684,1593.0,1591.9,3.0]
[1743977054510,1.2904,1592.9,1592.0,3.0]
[1743977054708,0.02,1592.9,1592.0,9.28139]
[1743977054974,0.02,1592.9,1592.7,10.03767]
[1743977055280,0.8266,1594.2,1592.9,3.0]
[1743977055486,0.8266,1594.2,1593.7,3.0]
[1743977055667,0.8266,1594.2,1593.5,8.37100097]
[1743977055986,0.8266,1594.2,1593.6,3.0]
[1743977056279,12.762,1594.6,1593.8,3.0]
[1743977056280,0.7632,1594.5,1593.8,3.0]
[1743977056446,0.7632,1594.5,1593.6,3.8146]
[1743977056785,0.7632,1593.8,1592.6,0.8146]
[1743977056933,0.7632,1593.8,1592.2,9.18560097]
[1743977057135,0.1,1593.3,1591.4,6.14]
[1743977057370,0.7672,1592.1,1590.7,0.8146]
[1743977057535,0.7672,1591.8,1590.4,6.14]
[1743977057735,0.7672,1591.8,1591.1,0.02]
[1743977058032,0.55,1591.7,1591.1,0.02]
[1743977058573,0.8187,1592.2,1591.2,0.7739]
[1743977058731,0.8187,1592.7,1591.4,6.28377]
[1743977058928,13.7977,1592.7,1591.7,3.0]
[1743977059133,0.7995,1592.5,1591.1,0.02]
[1743977059333,45.306,1592.4,1591.1,0.02]
[1743977059783,3.0,1592.3,1591.1,0.02]
[1743977059934,45.306,1592.4,1591.1,0.02]
[1743977060137,0.55,1592.3,1591.1,3.02]
[1743977060372,1.06317569,1592.3,1591.1,0.02]
[1743977060573,0.55,1592.1,1591.1,0.02]
[1743977060876,13.113,1592.0,1591.1,0.02]
[1743977061081,0.55,1591.9,1591.1,0.02]
[1743977061583,13.113,1592.0,1591.5,3.0]
[1743977061734,13.113,1592.0,1591.2,9.28453]
[1743977061934,13.113,1592.1,1591.2,6.28452]
[1743977062273,13.113,1592.1,1591.2,3.0]
[1743977062493,13.113,1592.1,1591.1,0.02]
[1743977062782,0.55,1592.0,1591.1,0.02]
[1743977062938,1.9163,1592.0,1591.1,0.02]
[1743977063139,1.9163,1592.0,1591.1,3.02]
[1743977063339,13.113,1592.1,1591.5,3.0]
[1743977063569,0.816,1592.2,1591.6,6.2827]
[1743977063748,13.048,1592.5,1591.5,0.55]
[1743977063963,13.048,1592.4,1591.4,9.28377]
[1743977064278,14.3528,1592.4,1591.4,4.542377]
[1743977064484,14.3528,1592.4,1591.6,3.0]
[1743977064685,14.3528,1592.4,1590.7,1.57528642]
[1743977064686,0.1,1592.1,1590.7,1.57528642]
[1743977064887,14.3528,1592.4,1590.3,0.77]
[1743977064888,4.3629,1591.9,1590.3,0.77]
[1743977065035,0.55,1591.5,1589.9,0.77]
[1743977065383,0.3128,1591.5,1589.5,8.69610642]
[1743977065588,0.4128,1591.5,1589.6,0.0628946]
[1743977065735,0.3128,1591.2,1589.5,8.69621642]
[1743977065942,0.8628,1590.8,1589.1,0.02]
[1743977066212,0.55,1590.3,1589.1,0.02]
[1743977066485,0.1,1589.8,1589.1,0.02]
[1743977066644,0.55,1589.5,1589.1,0.02]
[1743977066839,0.55,1589.2,1588.1,0.02]
[1743977067084,0.55,1589.0,1588.1,0.02]
[1743977067239,0.2928,1588.9,1588.1,0.02]
[1743977067937,0.62208,1588.9,1588.1,0.02]
[1743977068138,0.55,1588.7,1588.1,0.02]
[1743977068338,13.086,1588.8,1588.1,0.02]
[1743977068579,13.109,1588.8,1588.1,0.02]
[1743977069281,13.109,1588.8,1588.1,3.02]
[1743977069479,13.109,1588.8,1588.1,0.02]
[1743977069688,0.799,1588.5,1588.1,0.02]
[1743977069837,0.55,1588.4,1588.1,0.02]
[1743977070072,0.55,1588.2,1588.1,0.02]
[1743977070273,13.646,1588.2,1587.1,0.02]
[1743977070572,0.55,1588.0,1587.1,0.02]
[1743977070770,13.081,1587.9,1587.1,6.32059]
[1743977070974,0.55,1587.8,1587.1,0.02]
[1743977071237,0.7975,1587.7,1587.1,0.02]
[1743977071596,0.8318,1588.5,1587.9,3.0]
[1743977071805,13.11,1588.8,1588.0,3.06297126]
[1743977071986,13.11,1588.8,1588.1,6.29663]
[1743977072189,13.11,1588.8,1588.2,3.0]
[1743977072387,13.11,1588.8,1588.6,3.0]
[1743977072683,13.11,1588.8,1588.0,3.0]
[1743977072883,13.11,1588.8,1587.2,13.24372]
[1743977072884,48.331,1588.7,1587.2,13.24372]
[1743977073084,0.764,1588.6,1587.2,6.9435]
[1743977073306,0.55,1588.5,1587.3,9.99403]
[1743977073519,0.55,1588.5,1587.4,3.06298571]
[1743977073810,0.764,1588.6,1587.6,6.2988]
[1743977074004,0.764,1588.6,1587.7,3.0]
[1743977074204,0.7857,1589.0,1588.2,3.0]
[1743977074408,0.7951,1589.5,1588.9,3.0]
[1743977074713,0.02,1589.9,1589.6,3.0]
[1743977074913,0.02,1589.9,1589.8,3.0]
[1743977075085,19.246658,1590.2,1589.7,6.29048]
[1743977075086,6.162658,1590.2,1589.9,3.0]
[1743977075410,0.02,1590.9,1590.2,6.28851]
[1743977075612,0.02,1590.9,1590.7,6.28642]
[1743977075913,19.39172156,1590.9,1590.1,3.0]
[1743977076117,6.31172156,1590.9,1590.1,6.14]
[1743977076275,6.31172156,1590.9,1590.6,6.2868]
[1743977076476,0.02,1591.9,1590.9,0.8031]
[1743977076724,0.02,1592.9,1592.2,0.8031]
[1743977076909,0.02,1592.9,1592.7,3.0]
[1743977077213,0.02,1592.9,1592.8,3.0]
[1743977077624,13.36,1592.9,1591.7,0.55]
[1743977077828,1.336,1592.8,1591.8,3.0]
[1743977078025,1.336,1592.8,1591.6,0.8199]
[1743977078026,0.8013,1592.7,1591.6,0.8199]
[1743977078229,0.8013,1592.7,1591.5,2.3063046]
[1743977078527,0.55,1591.9,1590.3,2.6313892]
[1743977078755,0.55,1591.5,1589.8,6.28985]
[1743977079035,0.55,1591.5,1589.3,12.43183]
[1743977079036,0.55,1590.9,1589.4,0.34400631]
[1743977079204,4.3708,1590.7,1589.3,0.8083]
[1743977079524,13.436,1590.6,1590.1,0.02]
[1743977079732,0.8208,1590.7,1590.1,0.02]
[1743977080035,13.453,1591.0,1590.1,0.02]
[1743977080392,4.3051,1590.9,1590.1,0.02]
[1743977080616,0.43051,1590.8,1590.1,0.02]
[1743977080825,0.7551,1590.9,1590.2,6.28845]
[1743977081086,0.7551,1591.3,1590.7,0.55]
[1743977081313,0.7551,1591.9,1591.2,6.28426]
[1743977081519,1.86204569,1591.9,1591.0,3.0]
[1743977081939,1.86204569,1591.9,1591.4,3.0]
[1743977081940,0.7551,1591.9,1591.4,3.0]
[1743977082112,13.569,1592.1,1591.5,3.0]
[1743977082295,13.569,1592.1,1591.4,6.28354]
[1743977082296,13.601,1592.2,1591.0,0.55]
[1743977082501,0.9291,1592.1,1590.2,6.14]
[1743977082705,0.8291,1591.8,1590.2,0.06285458]
[1743977083033,0.55,1591.5,1590.2,9.28837]
[1743977083188,13.658,1591.4,1590.2,6.28837]
[1743977083393,13.658,1591.4,1590.2,0.55]
[1743977083631,0.8291,1591.1,1590.1,6.3088]
[1743977084014,0.8291,1591.1,1590.1,3.02]
[1743977084327,0.8291,1591.1,1590.3,9.28811]
[1743977084535,0.8291,1591.1,1590.4,6.28753]
[1743977084713,0.8291,1591.1,1590.4,6.28741]
[1743977084893,14.4497,1591.6,1590.5,0.06285691]
[1743977085107,3.7597,1591.4,1590.1,0.02]
[1743977085307,0.55,1591.1,1590.1,0.02]
[1743977085706,0.55,1591.0,1590.1,0.02]
[1743977085906,13.743,1590.9,1590.1,0.02]
[1743977086147,0.7597,1591.1,1590.2,0.7836]
[1743977086453,14.5105,1591.5,1590.6,3.0]
[1743977086621,13.714,1591.5,1590.2,6.9236]
[1743977086955,13.714,1591.5,1590.2,13.2118]
[1743977087158,1.309,1591.4,1590.2,3.0]
[1743977087365,45.299,1591.3,1590.1,0.02]
[1743977087652,0.55,1591.1,1590.1,0.02]
[1743977087855,0.55,1590.9,1590.1,0.02]
[1743977088039,0.3528,1590.6,1589.1,0.02]
[1743977088364,0.2528,1590.4,1589.5,0.46146009]
[1743977088654,14.116,1590.6,1590.2,6.28847]
[1743977088810,0.2528,1591.6,1590.4,0.55]
[1743977089013,0.2528,1591.6,1590.3,3.628847]
[1743977089250,0.7654,1591.0,1589.4,6.29148]
[1743977089409,0.7654,1590.6,1589.0,8.7802592]
[1743977089617,0.55,1590.3,1589.2,6.29208]
[1743977089819,59.493,1590.2,1589.1,0.02]
[1743977090007,1.02764569,1590.1,1589.1,6.31285]
[1743977090238,0.7654,1589.9,1589.1,0.02]
[1743977090550,14.289,1590.6,1589.9,0.55]
[1743977090751,14.299,1591.1,1590.1,0.7981]
[1743977090958,0.8057,1591.0,1589.4,0.37787]
[1743977091164,0.8057,1590.8,1589.4,3.0]
[1743977091454,0.0907,1590.8,1589.7,6.29019]
[1743977091609,0.0907,1590.8,1589.8,9.28987]
[1743977091810,0.0907,1590.8,1589.6,6.29089]
[1743977092158,14.516,1590.7,1589.9,6.2897]
[1743977092365,14.52,1590.6,1589.3,7.10508]
[1743977092547,59.839,1590.5,1589.8,3.0]
[1743977092712,38.6425,1591.5,1590.4,0.55]
[1743977092915,0.02,1591.9,1591.3,6.28415]
[1743977093218,0.02,1591.9,1590.4,9.83738]
[1743977093219,0.1,1591.8,1590.5,3.0]
[1743977093456,3.1,1591.8,1590.3,3.0]
[1743977093750,45.329,1591.9,1590.4,3.0]
[1743977093954,0.55,1591.8,1590.4,3.0]
[1743977094116,3.0,1591.8,1590.4,3.0]
[1743977094319,0.3511,1591.7,1590.4,3.0]
[1743977094545,14.622,1591.6,1590.8,3.0]
[1743977094717,14.622,1591.6,1590.8,9.28609]
[1743977094921,14.622,1591.6,1590.9,0.55]
[1743977095125,14.622,1591.6,1591.0,3.0]
[1743977095367,0.55,1591.5,1590.2,0.683856]
[1743977095660,0.3511,1591.4,1590.3,6.28812]
[1743977095863,0.3511,1591.4,1590.4,3.0]
[1743977096018,14.9901,1591.8,1591.2,3.0]
[1743977096315,14.9901,1591.8,1591.1,3.0]
[1743977096518,1.49901,1591.7,1590.7,9.28623]
[1743977096770,1.49901,1591.7,1590.9,9.28558]
[1743977096918,15.5401,1591.8,1591.1,0.55]
[1743977096919,15.0391,1591.8,1591.1,0.55]
[1743977097118,15.0391,1591.8,1591.4,3.0]
[1743977097323,15.0391,1591.8,1590.8,0.55]
[1743977097525,15.0391,1591.8,1591.0,0.55]
[1743977097725,0.02,1591.9,1591.7,6.28246]
[1743977097943,0.02,1591.9,1591.8,3.0]
[1743977098347,0.02,1591.9,1591.2,1.3148]
[1743977098526,0.02,1591.9,1591.4,6.2835]
[1743977098733,6.38472668,1592.7,1592.6,6.27904]
[1743977098922,0.3511,1593.8,1593.0,6.27746]
[1743977099121,0.3511,1593.8,1593.5,3.0]
[1743977099348,0.3511,1593.8,1593.5,9.27525]
[1743977099548,0.02,1593.9,1593.8,9.27431]
[1743977099757,0.02,1593.9,1593.2,6.82662]
[1743977099758,0.3511,1594.3,1593.5,3.0]
[1743977099960,0.3511,1594.3,1593.7,3.0]
[1743977100190,2.55689744,1593.9,1593.4,3.0]
[1743977100364,2.55689744,1593.9,1593.8,3.0]
[1743977100567,2.55689744,1593.9,1593.7,3.0]
[1743977100770,2.55689744,1593.9,1593.4,3.0]
[1743977100973,0.3511,1593.6,1591.7,1.13712243]
[1743977101136,0.9011,1592.9,1591.1,0.8173]
[1743977101482,0.7848,1592.5,1591.1,0.49870935]
[1743977101651,14.626,1592.4,1592.1,6.28098]
[1743977101978,0.7848,1592.5,1592.2,6.28044]
[1743977102184,15.4228,1592.9,1592.1,6.30072]
[1743977102387,1.54228,1592.8,1592.1,0.02]
[1743977102541,0.55,1592.5,1592.1,0.02]
[1743977102744,0.55,1592.2,1592.1,0.02]
[1743977102979,14.634,1592.2,1592.1,0.02]
[1743977103185,0.7877,1592.8,1592.2,3.0]
[1743977103354,0.7877,1592.8,1592.1,0.02]
[1743977103355,0.7877,1592.8,1592.4,9.27961]
[1743977103550,0.55,1592.7,1592.1,0.02]
[1743977103889,0.1,1592.1,1591.1,0.02]
[1743977104180,46.0201,1592.0,1591.1,0.02]
[1743977104347,14.67,1591.9,1591.1,0.02]
[1743977104547,14.67,1591.9,1591.4,6.28351]
[1743977104756,14.67,1591.9,1591.5,3.0]
[1743977105274,14.67,1591.9,1591.1,0.02]
[1743977105441,1.467,1591.8,1591.1,0.02]
[1743977105665,4.467,1591.8,1591.1,0.02]
[1743977105884,14.67,1591.9,1591.1,0.02]
[1743977106060,0.7591,1592.0,1591.2,6.28426]
[1743977106355,15.3781,1592.0,1591.4,3.0]
[1743977106680,15.4228,1592.5,1591.5,3.0]
[1743977106983,0.55,1592.4,1591.1,0.02]
[1743977107184,3.55,1592.4,1591.1,0.02]
[1743977107353,3.0,1592.4,1591.1,0.02]
[1743977107703,0.55,1591.6,1591.1,0.02]
[1743977107909,59.906,1591.5,1591.1,0.02]
[1743977108109,3.55,1591.4,1591.1,0.02]
[1743977108409,0.7988,1591.3,1591.1,0.02]
[1743977108771,0.55,1591.2,1591.1,0.02]
[1743977109510,1.15,1591.2,1591.1,0.02]
[1743977109713,0.6,1591.2,1591.1,0.02]
[1743977109894,0.6,1591.2,1591.1,6.30496]
[1743977110078,14.6,1591.8,1591.4,3.0]
[1743977110279,14.6,1591.8,1591.2,3.0]
[1743977110518,3.7902,1591.7,1591.1,0.02]
[1743977110674,0.55,1591.5,1591.1,0.02]
[1743977110873,0.55,1591.3,1591.1,0.02]
[1743977111107,15.175,1591.2,1591.1,0.02]
[1743977111431,0.3351,1591.6,1590.2,0.8005]
[1743977111606,45.276,1592.2,1590.1,0.02]
[1743977111607,0.3351,1591.1,1590.1,0.02]
[1743977111807,14.702,1591.0,1590.1,0.02]
[1743977111981,0.3351,1590.8,1590.1,0.02]
[1743977112408,0.801,1592.2,1590.2,0.71605458]
[1743977112708,0.801,1591.9,1590.8,1.3545]
[1743977112931,14.827,1592.0,1591.2,3.0]
[1743977113075,0.7974,1592.5,1591.4,3.0]
[1743977113274,45.284,1592.4,1590.6,0.693706]
[1743977113509,3.7974,1592.3,1590.6,3.55]
[1743977113674,0.7698,1592.2,1590.6,3.0]
[1743977113875,0.55,1592.1,1590.5,3.0]
[1743977114219,0.02,1592.9,1590.6,6.3496668]
[1743977114512,0.8161,1592.8,1591.5,0.7947]
[1743977114696,0.8161,1592.8,1591.4,3.0]
[1743977114697,0.02,1592.9,1592.1,0.7947]
[1743977114903,1e-05,1592.9,1592.8,9.82825]
[1743977115217,0.79821885,1594.4,1592.9,3.0]
[1743977115218,0.47208834,1594.4,1592.9,3.0]
[1743977115423,0.7821,1594.2,1593.3,6.2759]
[1743977115622,0.7821,1594.2,1593.1,9.27691]
[1743977115822,0.7821,1594.2,1592.8,6.27787]
[1743977116027,0.7821,1594.2,1592.9,0.69055752]
[1743977116195,0.7821,1594.2,1593.7,6.27433]
[1743977116396,0.7821,1594.7,1593.8,9.33705156]
[1743977116603,0.7821,1594.7,1593.8,9.27431]
[1743977116788,0.7821,1594.7,1593.8,3.0]
[1743977117295,0.02,1594.9,1594.0,0.55]
[1743977117486,0.02,1594.9,1594.8,10.06557]
[1743977117686,0.11770266,1595.7,1594.8,3.85789747]
[1743977117886,0.11770266,1595.7,1594.0,0.355]
[1743977117887,4.5893836,1595.6,1594.0,0.355]
[1743977118092,4.5893836,1595.6,1593.3,0.7952]
[1743977118093,0.9192,1595.3,1593.3,0.7952]
[1743977118288,0.8192,1594.8,1593.3,6.27616]
[1743977118519,0.8192,1594.8,1593.6,6.2751]
[1743977118723,0.8192,1594.8,1593.1,0.8181]
[1743977118884,0.8192,1594.3,1592.6,0.8181]
[1743977119195,0.8192,1593.8,1592.4,6.27982]
[1743977119531,0.8192,1594.2,1592.8,0.8181]
[1743977119697,0.8192,1594.2,1592.5,6.27943]
[1743977119698,0.55,1594.1,1592.5,6.27936]
[1743977119888,0.8192,1594.0,1592.4,6.27961]
[1743977120090,0.8192,1594.0,1593.6,6.27484]
[1743977120289,50.25113523,1595.8,1592.8,0.8181]
[1743977120290,45.258,1595.2,1594.1,6.27291]
[1743977120613,0.779,1595.1,1593.8,3.0]
[1743977120790,0.779,1595.0,1593.8,3.0]
[1743977120989,0.55,1594.7,1593.3,6.27604]
[1743977121222,0.55,1594.5,1592.7,0.8302]
[1743977121387,0.779,1594.2,1592.7,0.8302]
[1743977121724,0.779,1594.6,1594.2,6.27251]
[1743977121911,0.779,1594.6,1594.2,3.0]
[1743977122222,0.779,1594.6,1593.1,0.02]
[1743977122425,0.7638,1594.3,1593.2,6.27641]
[1743977122733,0.7638,1594.3,1593.8,6.27399]
[1743977122937,0.7949,1594.8,1593.9,3.0]
[1743977123095,45.244,1594.7,1593.7,0.81]
[1743977123425,0.55,1594.1,1592.1,0.8432]
[1743977123640,0.55,1594.1,1592.1,0.02]
[1743977123641,0.55,1593.6,1592.1,0.02]
[1743977123789,0.65,1593.2,1592.1,0.02]
[1743977123988,1.325,1592.9,1592.1,0.02]
[1743977124187,0.55,1592.7,1592.1,0.02]
[1743977124494,0.3152,1592.4,1591.1,0.02]
[1743977124689,45.5482,1592.3,1591.1,0.02]
[1743977124890,0.3152,1592.3,1591.4,6.28349]
[1743977125300,0.3152,1592.3,1592.1,3.0]
[1743977125503,0.3152,1592.3,1591.3,6.28417]
[1743977125795,0.3152,1592.3,1591.7,6.28248]
[1743977125998,0.3152,1592.3,1591.8,3.0]
[1743977126305,0.3152,1592.3,1591.8,6.28216]
[1743977126505,0.3152,1592.3,1591.9,3.0]
[1743977127131,0.3152,1592.3,1591.7,9.28256]
[1743977127738,0.3152,1592.3,1591.3,6.83408]
[1743977127739,0.3152,1592.3,1591.4,0.55]
[1743977128027,0.7684,1593.6,1592.3,0.55]
[1743977128200,0.7684,1593.6,1593.2,3.0]
[1743977128411,0.7684,1593.6,1593.1,6.2768]
[1743977128412,0.7684,1593.6,1592.3,0.55]
[1743977128592,0.7684,1593.6,1592.2,0.8133]
[1743977128790,0.8684,1593.6,1591.7,6.28235]
[1743977129027,0.02,1593.9,1591.7,0.706485]
[1743977129028,0.8199,1593.1,1591.7,0.706485]
[1743977129239,0.7708,1593.7,1592.2,0.7661]
[1743977129419,0.7708,1593.7,1591.6,6.28277]
[1743977129635,0.7708,1593.1,1591.5,6.28329]
[1743977129930,0.7708,1593.2,1591.9,0.7661]
[1743977130242,45.03671852,1593.7,1593.4,6.27554]
[1743977130243,6.39421852,1593.7,1593.4,6.27554]
[1743977130548,6.39421852,1593.7,1592.2,11.2827764]
[1743977130549,0.8235,1593.5,1592.0,7.06296]
[1743977130837,0.55,1593.4,1591.7,6.28238]
[1743977131054,0.55,1593.0,1591.5,12.56629]
[1743977131201,46.0655,1592.9,1591.7,6.28259]
[1743977131407,0.61759187,1592.8,1591.9,9.2815]
[1743977131706,0.61759187,1592.8,1592.1,3.0]
[1743977132106,0.61759187,1592.8,1591.7,6.28252]
[1743977132335,0.61759187,1592.8,1592.2,3.0]
[1743977132538,0.61759187,1592.8,1591.6,6.28268]
[1743977132752,0.61759187,1592.8,1591.4,3.0]
[1743977132753,0.55,1592.5,1591.1,7.08685]
[1743977132913,0.61759187,1592.8,1591.4,6.28341]
[1743977132914,0.8314,1592.2,1591.4,6.28341]
[1743977133113,0.55,1591.9,1591.1,0.02]
[1743977133354,0.8314,1592.0,1591.3,0.46635446]
[1743977133512,0.58446743,1591.8,1591.4,0.06282819]
[1743977133707,0.8314,1592.0,1591.1,0.02]
[1743977133920,0.58446743,1591.7,1591.1,6.30495]
[1743977134122,0.55,1591.9,1591.1,0.02]
[1743977134351,0.55,1592.0,1591.1,0.02]
[1743977134650,0.55,1591.5,1591.1,0.02]
[1743977134855,1.3828,1591.3,1591.1,0.02]
[1743977135412,0.58013266,1591.2,1591.1,0.02]
[1743977135608,0.58013266,1591.2,1591.1,9.30496]
[1743977135855,0.7935,1591.7,1591.2,9.28417]
[1743977136162,45.245,1592.6,1591.6,3.0]
[1743977136323,0.7935,1592.5,1591.8,6.28197]
[1743977136512,0.7935,1592.5,1591.8,3.0]
[1743977136513,1.27098565,1592.5,1591.8,3.0]
[1743977136709,0.8076,1592.4,1591.1,3.02]
[1743977136910,0.1,1592.1,1591.1,0.02]
[1743977137110,0.8452,1591.7,1589.4,0.8119]
[1743977137357,0.55,1591.1,1589.4,0.8119]
[1743977137510,0.8452,1591.3,1589.4,0.8119]
[1743977137730,0.2952,1591.1,1589.1,0.02]
[1743977138044,0.2952,1591.1,1589.9,6.28936]
[1743977138241,0.55,1590.9,1590.0,6.28922]
[1743977138431,0.47753582,1591.0,1590.6,6.2867]
[1743977138633,0.43590349,1590.8,1590.6,6.2867]
[1743977138867,0.2952,1591.1,1590.7,9.28654]
[1743977139157,0.7721,1591.7,1590.9,3.0]
[1743977139366,0.7721,1591.7,1591.0,3.0]
[1743977139673,0.7923,1591.6,1590.1,0.650922]
[1743977139878,0.7923,1591.4,1590.1,0.02]
[1743977140079,0.7923,1591.4,1590.4,8.40234432]
[1743977140376,0.35974266,1591.3,1591.1,9.28479]
[1743977140672,0.7923,1591.4,1591.2,3.0]
[1743977140972,0.7923,1591.4,1590.7,3.0]
[1743977141135,0.8809581,1591.3,1590.7,3.0]
[1743977141503,0.3309581,1591.3,1590.7,15.57279]
[1743977141682,0.3309581,1591.3,1591.1,3.0]
[1743977141837,0.7923,1591.4,1590.8,9.28597]
[1743977142032,0.7923,1591.4,1590.4,14.68987432]
[1743977142033,0.7923,1591.4,1590.6,6.28667]
[1743977142277,0.30673491,1591.3,1590.9,3.0]
[1743977142575,0.5,1591.3,1591.0,3.0]
[1743977142774,0.30673491,1591.2,1591.0,9.28526]
[1743977142935,4.91e-06,1591.2,1591.1,9.28496]
[1743977143262,0.5,1591.3,1591.1,3.0]
[1743977143666,0.8197,1592.1,1591.2,3.0]
[1743977143832,0.8197,1592.1,1591.3,9.28417]
[1743977144030,0.25561283,1592.0,1591.2,6.28422]
[1743977144232,0.25561283,1592.0,1591.9,3.0]
[1743977144430,6.39421852,1592.3,1592.0,3.0]
[1743977144673,6.39421852,1592.3,1592.2,3.0]
[1743977144831,6.39421852,1592.3,1592.2,9.28061]
[1743977145165,6.39421852,1592.3,1591.3,3.0]
[1743977145392,6.39421852,1592.3,1591.0,6.28514]
[1743977145393,0.55,1592.1,1591.0,6.28514]
[1743977145598,0.55,1591.7,1590.4,0.8069]
[1743977145796,46.0293,1591.8,1591.1,3.0]
[1743977145971,46.0293,1591.8,1591.3,3.0]
[1743977146180,0.7523,1592.2,1591.7,3.0]
[1743977146381,0.7523,1592.2,1591.5,6.28315]
[1743977146572,0.7523,1592.2,1591.6,3.0]
[1743977146772,0.7523,1592.2,1591.7,9.28238]
[1743977147192,6.39421852,1593.1,1592.0,6.28133]
[1743977147367,0.7988,1592.8,1592.7,6.27864]
[1743977147567,0.7988,1592.8,1592.2,6.83061]
[1743977147568,0.8027,1592.8,1591.3,1.28767463]
[1743977147808,0.8027,1592.8,1592.5,6.27926]
[1743977148005,0.8027,1592.8,1592.6,3.0]
[1743977148176,6.39421852,1593.1,1592.8,6.27825]
[1743977148383,6.39421852,1593.1,1592.1,8.40234432]
[1743977148579,0.8132,1592.8,1592.2,0.0627945]
[1743977148785,6.39421852,1593.1,1592.2,9.28057]
[1743977148982,6.39421852,1593.1,1592.6,3.0]
[1743977149196,6.39421852,1593.1,1592.8,9.27825]
[1743977149396,6.39421852,1593.1,1593.0,6.27746]
[1743977149708,8.52e-06,1593.4,1593.3,9.82628]
[1743977149910,8.52e-06,1593.4,1593.3,18.29136086]
[1743977150107,8.52e-06,1593.4,1593.3,3.0]
[1743977150272,0.78210852,1593.4,1592.7,3.0]
[1743977150600,8.52e-06,1593.4,1593.3,9.27628]
[1743977150801,0.7821,1593.8,1593.7,3.0]
[1743977150988,6.61420686,1593.8,1593.3,1.555288]
[1743977151191,6.61420686,1593.8,1593.3,6.27607]
[1743977151367,6.61420686,1593.8,1593.2,9.27641]
[1743977151574,0.7747,1593.6,1592.1,0.774]
[1743977151769,45.253,1593.5,1592.5,0.46592865]
[1743977152114,0.19360045,1593.4,1593.3,6.27628]
[1743977152410,0.19360045,1593.4,1593.0,8.40234432]
[1743977152615,6.42060641,1593.8,1593.0,3.0]
[1743977152821,0.17746708,1593.7,1593.0,15.55451]
[1743977153018,0.17746708,1593.7,1593.2,3.0]
[1743977153216,0.17746708,1593.7,1593.5,3.0]
[1743977153424,0.17746708,1593.7,1593.6,6.2751]
[1743977153578,0.02,1593.9,1593.6,6.2751]
[1743977153579,0.02,1593.9,1593.7,3.0]
[1743977153779,0.16267875,1593.8,1593.6,3.0]
[1743977154031,0.16267875,1593.8,1593.6,10.202433]
[1743977154319,0.16267875,1593.8,1593.7,9.71]
[1743977154502,0.16267875,1593.8,1593.5,0.47869833]
[1743977154674,0.16267875,1593.8,1593.5,6.75416833]
[1743977154873,0.02,1593.9,1593.8,3.0]
[1743977155132,0.02,1593.9,1593.5,0.47869833]
[1743977155276,0.02,1593.9,1593.4,6.27568]
[1743977155476,0.02,1593.9,1593.2,3.0]
[1743977155723,0.8057,1593.8,1592.8,0.46112234]